bitfinex-derivatives/quotes_ETHF0:USTF0_20251107
["timestamp","ask_amount","ask_price","bid_price","bid_amount"]
[1762494406997,3.2078,3357.6,3357.5,0.6758]
[1762494407199,3.69055,3357.6,3357.5,0.6758]
[1762494409103,3.2078,3357.6,3357.5,1.15856]
[1762494409405,3.69055,3357.6,3357.5,0.2599]
[1762494414305,4.49832365,3357.6,3357.5,0.2599]
[1762494419210,3.69055,3357.6,3357.5,0.2599]
[1762494419411,4.49855188,3357.6,3357.5,0.2599]
[1762494420510,3.2078,3358.0,3357.9,0.4159]
[1762494420809,3.2078,3358.4,3358.3,0.4159]
[1762494421000,0.48268,3358.1,3358.0,0.2466]
[1762494421206,0.48275,3357.6,3357.5,0.2599]
[1762494421406,3.69055,3357.6,3357.5,0.2599]
[1762494421910,3.2078,3357.6,3357.5,1.15856]
[1762494422101,10.74848,3358.1,3358.0,0.2466]
[1762494422304,11.55634176,3358.1,3358.0,0.2466]
[1762494422512,0.48275,3357.6,3357.5,0.2599]
[1762494422812,0.48275,3357.6,3357.5,1.15856]
[1762494423508,0.48275,3357.6,3357.5,0.6758]
[1762494424018,3.2078,3357.7,3357.6,0.89865]
[1762494424219,3.69053,3357.7,3357.6,0.89865]
[1762494424412,3.2078,3357.7,3357.6,0.89865]
[1762494425418,0.48272,3357.8,3357.7,0.89863]
[1762494425622,3.69048,3358.1,3358.0,0.6273]
[1762494425816,4.49819045,3358.1,3358.0,0.6273]
[1762494426121,3.2078,3358.1,3358.0,1.10999]
[1762494426717,3.69043,3358.5,3358.4,0.48263]
[1762494426919,3.69043,3358.5,3358.4,0.87003]
[1762494427322,3.69042,3358.5,3358.4,0.87003]
[1762494427728,3.2078,3358.5,3358.4,0.87003]
[1762494428116,3.69042,3358.5,3358.4,0.87003]
[1762494428924,0.48262,3358.5,3358.4,0.87003]
[1762494430033,0.48262,3358.5,3358.4,0.3874]
[1762494430324,0.48266,3358.2,3358.1,0.3874]
[1762494430519,3.2078,3358.5,3358.0,0.2399]
[1762494430722,3.69042,3358.5,3358.4,0.48263]
[1762494431226,3.2078,3358.5,3358.4,0.87003]
[1762494432024,2.325e-05,3358.9,3358.8,0.86998]
[1762494432232,3.2078,3359.9,3359.5,0.2399]
[1762494432426,0.71805,3359.7,3359.6,0.48246]
[1762494432728,0.2356,3359.7,3359.6,0.48246]
[1762494432928,0.71805,3359.7,3359.6,0.86986]
[1762494433227,0.72019524,3359.7,3359.6,0.38969671]
[1762494433725,0.23774524,3359.7,3359.6,0.87215671]
[1762494433929,0.72019524,3359.7,3359.6,0.87215671]
[1762494434527,0.00214524,3359.7,3359.6,0.87215671]
[1762494434734,0.48459524,3359.7,3359.6,0.87215671]
[1762494435829,0.48459524,3359.7,3359.0,0.2399]
[1762494435830,5.9536,3359.6,3358.0,0.6273]
[1762494436134,0.48265,3358.3,3358.0,0.2399]
[1762494436330,0.48267,3358.2,3358.0,0.72259]
[1762494436529,3.2078,3358.1,3358.0,0.2399]
[1762494436730,3.2078,3358.1,3358.0,0.2434559]
[1762494436932,3.4411,3358.1,3358.0,0.2434559]
[1762494437133,3.4411,3358.1,3358.0,0.0035559]
[1762494438433,0.2297,3356.6,3356.1,2.62848286]
[1762494438735,3.6907,3356.6,3356.2,0.48295]
[1762494438933,3.2078,3356.6,3356.3,0.48293]
[1762494439131,3.6907,3356.6,3356.3,0.48293]
[1762494439437,3.21038024,3356.6,3356.3,0.00261466]
[1762494439734,3.21038024,3356.6,3356.5,0.2399]
[1762494439927,3.21038024,3356.6,3356.5,0.6273]
[1762494441638,3.20333179,3357.0,3356.9,0.3874]
[1762494441938,3.20333179,3357.0,3356.9,0.87025]
[1762494442634,3.20668071,3357.0,3356.9,0.87025]
[1762494443129,0.00334892,3357.0,3356.9,0.87025]
[1762494444234,0.00334892,3357.0,3356.9,8.87025]
[1762494444434,0.00334892,3357.0,3356.9,6.82785]
[1762494444634,0.00334892,3357.0,3356.9,14.82785]
[1762494444837,0.00446821,3357.3,3356.9,14.82785]
[1762494444838,0.00446821,3357.3,3357.2,0.87021]
[1762494445835,3.2078,3357.9,3357.8,0.87012]
[1762494446042,0.2496,3358.5,3358.3,0.48264]
[1762494446333,0.48261,3358.6,3358.4,0.48263]
[1762494446539,0.6107,3358.5,3358.4,0.48263]
[1762494446928,0.8437,3358.7,3358.4,0.48262]
[1762494447135,0.8437,3358.7,3358.0,0.2399]
[1762494447136,0.3611,3358.6,3358.5,0.48262]
[1762494447638,0.3611,3358.6,3358.3,0.48264]
[1762494448035,0.2496,3358.5,3358.3,0.48264]
[1762494448234,3.2078,3358.4,3358.0,0.2399]
[1762494450343,3.5689,3358.4,3358.3,0.48264]
[1762494452147,4.05153,3358.4,3358.3,0.48264]
[1762494453647,3.5689,3358.4,3358.3,0.48264]
[1762494454246,0.2496,3358.0,3357.5,3.4477]
[1762494454845,0.6107,3358.0,3357.9,0.48271]
[1762494455045,0.3611,3358.0,3357.9,0.99901]
[1762494455345,0.4924,3357.4,3357.3,0.48279]
[1762494455550,0.4924,3356.7,3356.3,0.00261466]
[1762494455743,0.4924,3356.7,3356.5,0.48291]
[1762494455944,0.4924,3356.7,3356.3,0.48554466]
[1762494456148,0.4924,3356.7,3356.4,0.48292]
[1762494456446,0.4924,3356.7,3356.3,0.00261466]
[1762494456849,0.4924,3356.7,3356.4,0.48292]
[1762494457243,0.4924,3356.7,3356.3,0.00261466]
[1762494460048,0.4924,3356.7,3356.5,0.4829]
[1762494460951,3.2078,3356.8,3356.7,0.96758]
[1762494461248,0.5132,3356.7,3356.3,0.00261466]
[1762494462749,0.5132,3356.7,3356.3,0.48554466]
[1762494462949,0.5132,3356.7,3356.3,0.00261466]
[1762494463744,0.5132,3356.7,3356.3,0.48554466]
[1762494463954,0.99608,3356.7,3356.3,0.48554466]
[1762494466256,0.99608,3356.7,3356.3,0.00261466]
[1762494466754,0.5132,3355.8,3355.7,0.48302]
[1762494467851,0.51573311,3355.8,3355.7,0.48511927]
[1762494468051,0.00253311,3355.8,3355.7,0.96981927]
[1762494469456,0.00253311,3355.8,3355.7,8.96981927]
[1762494469845,0.2943,3356.5,3355.7,8.96981927]
[1762494470050,0.48289,3356.6,3356.5,0.48291]
[1762494470455,3.721,3356.7,3356.6,0.48289]
[1762494471157,3.72429892,3356.7,3356.6,0.48289]
[1762494471361,3.21109892,3356.7,3356.6,0.96759]
[1762494471957,0.5132,3356.2,3356.1,1.15096]
[1762494472156,0.48292,3356.4,3356.3,0.48293]
[1762494472356,0.48294,3356.3,3356.1,0.668]
[1762494472846,1.29041,3356.5,3356.4,0.48292]
[1762494473861,0.8075,3356.5,3356.1,0.48296]
[1762494474162,0.99615,3356.3,3356.2,0.48295]
[1762494474761,0.5132,3356.3,3356.2,0.48295]
[1762494475253,0.5132,3356.3,3356.2,0.96765]
[1762494475758,0.2943,3356.5,3356.4,0.48292]
[1762494476159,0.8075,3356.5,3356.4,0.48292]
[1762494476357,1.29041,3356.5,3356.4,0.48292]
[1762494476860,0.5132,3356.5,3356.4,0.96762]
[1762494477060,0.99609,3356.6,3356.5,0.48291]
[1762494477558,3.21109892,3356.7,3356.3,0.48292]
[1762494477559,0.48293,3356.4,3356.3,0.48292]
[1762494477861,0.99613,3356.4,3356.3,0.48292]
[1762494480466,0.99615,3356.2,3356.1,1.15096]
[1762494480659,0.5132,3356.2,3356.1,1.15096]
[1762494480859,0.99615,3356.2,3356.1,1.15096]
[1762494481067,0.5132,3356.2,3356.1,1.15096]
[1762494481261,0.99615,3356.2,3356.1,1.15096]
[1762494482160,0.2943,3356.5,3356.4,0.96762]
[1762494482457,0.8075,3356.5,3356.4,0.48292]
[1762494482861,0.8075,3356.5,3356.4,0.96762]
[1762494483061,0.8075,3356.5,3356.4,0.48292]
[1762494483561,0.48293,3356.4,3356.1,0.668]
[1762494483763,0.48295,3356.3,3356.2,0.96765]
[1762494484067,0.99615,3356.3,3356.2,0.96765]
[1762494484466,0.5132,3356.3,3356.2,0.96765]
[1762494485167,0.95515,3356.3,3356.2,0.48295]
[1762494487569,0.48296,3356.1,3355.9,0.48299]
[1762494487766,0.7715,3356.0,3355.9,0.48299]
[1762494488969,0.7665,3356.5,3356.4,0.48292]
[1762494489167,1.24941,3356.5,3356.4,0.48292]
[1762494489670,0.7665,3356.5,3356.4,0.48292]
[1762494491071,0.4722,3356.3,3356.2,0.48294]
[1762494492670,3.2078,3356.6,3356.5,1.22491]
[1762494492867,3.69069,3356.6,3356.5,1.22491]
[1762494493175,4.16289,3356.6,3356.5,0.92241]
[1762494493470,3.68,3356.6,3356.5,0.92241]
[1762494493971,0.00329892,3356.7,3356.6,0.92239]
[1762494494773,0.00329892,3356.7,3356.6,1.59039]
[1762494495376,0.47549892,3356.7,3356.6,1.59039]
[1762494496372,0.47549892,3356.7,3356.6,1.15089]
[1762494496574,0.00446821,3357.0,3356.9,0.92235]
[1762494497670,0.00825141,3357.0,3356.9,0.92235]
[1762494500072,0.00825141,3357.0,3356.9,1.59035]
[1762494500275,3.2078,3357.5,3357.4,0.92228]
[1762494501274,3.21147272,3357.5,3357.4,0.92228]
[1762494503176,0.00367272,3357.5,3357.4,0.92228]
[1762494506674,2.21594093,3357.9,3357.8,0.92222]
[1762494507580,2.21850783,3357.9,3357.8,0.92222]
[1762494509580,2.21850783,3357.9,3357.8,1.15724609]
[1762494509784,0.0025669,3357.9,3357.8,1.15724609]
[1762494513188,0.0025669,3357.9,3357.8,0.92222]
[1762494513482,0.4747669,3357.9,3357.8,0.92222]
[1762494513882,0.4747669,3357.9,3357.8,0.48272]
[1762494514285,0.9574769,3357.9,3357.8,0.48272]
[1762494514495,0.95492,3357.8,3357.7,0.668]
[1762494514881,0.4154,3357.4,3357.2,3.8758]
[1762494515087,0.74396,3357.5,3357.2,0.48281]
[1762494515088,0.4154,3357.3,3357.2,0.48281]
[1762494517196,0.6766,3357.5,3357.4,0.48278]
[1762494520000,1.15936,3357.5,3357.4,0.48278]
[1762494520993,0.6766,3357.5,3357.4,0.48278]
[1762494521697,0.2612,3357.5,3357.1,1.10076821]
[1762494522393,0.2612,3357.5,3357.1,0.67246821]
[1762494522702,0.4065,3357.2,3357.1,1.15528821]
[1762494522896,0.4065,3357.2,3357.1,1.58358821]
[1762494526808,0.4065,3357.2,3357.1,0.91558821]
[1762494527208,0.2612,3357.5,3357.4,0.91108]
[1762494527410,0.4090669,3357.9,3357.8,0.48272]
[1762494528510,0.8917769,3357.9,3357.8,0.48272]
[1762494528714,0.4090669,3357.9,3357.8,0.48272]
[1762494529312,0.8917769,3357.9,3357.8,0.48272]
[1762494530218,0.4090669,3357.9,3357.8,0.48272]
[1762494530406,0.8917769,3357.9,3357.8,0.48272]
[1762494532118,0.4090669,3357.9,3357.8,0.48272]
[1762494533419,0.4090669,3357.9,3357.8,0.91102]
[1762494534914,0.4090669,3357.9,3357.8,0.48272]
[1762494535112,0.8917769,3357.9,3357.8,0.48272]
[1762494536720,0.0025669,3357.9,3357.8,0.91102]
[1762494539223,0.00446821,3358.2,3358.1,0.91098]
[1762494539525,0.00446821,3358.2,3358.1,4.11878]
[1762494540325,0.4065,3359.2,3359.1,0.48252]
[1762494540615,0.40874225,3359.2,3359.1,0.48252]
[1762494540819,0.00224225,3359.2,3359.1,0.91082]
[1762494542017,0.00224225,3359.2,3359.1,1.14510368]
[1762494542220,0.6593,3359.0,3358.9,3.69036]
[1762494542422,0.40874225,3359.2,3359.1,0.48253]
[1762494542924,0.89126225,3359.2,3358.8,0.00446821]
[1762494543510,0.00224225,3359.2,3358.8,0.00446821]
[1762494543713,0.4065,3358.9,3358.8,0.00446821]
[1762494545321,0.4065,3358.9,3358.8,0.43276821]
[1762494545615,0.2528,3359.0,3358.9,0.88096]
[1762494545820,0.00224225,3359.2,3359.0,0.48253]
[1762494546123,0.3991,3358.9,3358.8,0.00446821]
[1762494546324,3.6069,3358.9,3358.8,0.00446821]
[1762494547723,4.08946,3358.9,3358.8,0.00446821]
[1762494548915,0.88175,3358.3,3358.2,3.69046]
[1762494551418,0.88176,3358.2,3358.1,0.4861027]
[1762494551821,0.88176,3358.2,3358.1,0.0034227]
[1762494552428,0.88176,3358.2,3358.1,2.27e-05]
[1762494552826,0.3991,3357.4,3357.3,0.48279]
[1762494553722,0.3991,3357.4,3357.3,0.88450752]
[1762494553920,3.2078,3357.7,3357.6,0.88115]
[1762494553921,3.21226821,3357.7,3357.6,0.88115]
[1762494554119,0.00446821,3357.7,3357.6,0.88115]
[1762494554317,0.40356821,3357.7,3357.6,0.48275]
[1762494554822,0.00446821,3357.7,3357.6,0.88115]
[1762494555327,0.40356821,3357.7,3357.3,0.00331752]
[1762494555533,0.88629821,3357.7,3357.6,0.48275]
[1762494556629,0.40356821,3357.7,3357.6,0.48275]
[1762494557128,0.40356821,3357.7,3357.6,0.88115]
[1762494557529,0.00446821,3357.7,3357.6,0.88115]
[1762494560229,0.40356821,3357.7,3357.6,0.48275]
[1762494560933,0.88629821,3357.7,3357.6,0.48275]
[1762494562120,0.88186,3357.5,3357.4,1.15076]
[1762494562329,1.13256,3357.5,3357.4,1.15076]
[1762494562936,0.3991,3357.5,3357.4,1.54916]
[1762494563232,0.88188,3357.4,3357.3,0.00331752]
[1762494563426,0.3991,3357.4,3357.3,0.48610752]
[1762494563632,0.2507,3357.5,3357.4,0.48278]
[1762494563831,0.88188,3357.4,3357.3,0.48610752]
[1762494564229,0.88188,3357.4,3357.3,0.00331752]
[1762494565035,0.88188,3357.4,3357.3,0.48610752]
[1762494565633,0.88188,3357.4,3357.3,0.00331752]
[1762494566332,0.88188,3357.4,3357.3,0.48610752]
[1762494568023,0.2507,3357.5,3357.3,0.88450752]
[1762494568229,0.40356821,3357.7,3357.6,0.48275]
[1762494568431,0.40356821,3357.7,3357.6,0.88115]
[1762494569033,0.88629821,3357.7,3357.6,0.88115]
[1762494570236,0.00446821,3357.7,3357.6,0.88115]
[1762494571542,0.3991,3357.4,3357.3,0.00331752]
[1762494571831,4.08968,3357.4,3357.3,0.40171752]
[1762494572038,4.08968,3357.4,3357.3,0.00331752]
[1762494573040,3.6069,3357.4,3357.3,0.88450752]
[1762494574541,4.08968,3357.4,3357.3,0.00331752]
[1762494574741,3.6069,3357.4,3357.3,0.48610752]
[1762494574937,0.00446821,3357.7,3357.6,0.83335]
[1762494575142,0.35166821,3357.7,3357.6,0.48275]
[1762494576745,0.00446821,3357.7,3357.3,0.00331752]
[1762494576946,0.3472,3357.4,3357.3,0.48610752]
[1762494577638,0.82998,3357.4,3357.3,0.00331752]
[1762494577842,0.00446821,3357.7,3357.6,0.48275]
[1762494578140,0.00446821,3357.7,3357.6,0.83335]
[1762494578948,0.00446821,3357.7,3357.6,8.83335]
[1762494579447,3.2078,3358.2,3358.1,0.83328]
[1762494579841,3.2078,3358.8,3358.5,0.48262]
[1762494580144,0.48259,3358.7,3358.6,0.8429]
[1762494580348,3.2078,3358.8,3358.7,0.84289]
[1762494580738,0.48257,3358.9,3358.7,0.84289]
[1762494581236,0.48258,3358.8,3358.7,0.84289]
[1762494581958,1.07982821,3359.0,3358.9,0.84286]
[1762494582138,0.48702821,3359.0,3358.9,0.84286]
[1762494582344,0.48258,3358.8,3358.7,0.84288]
[1762494582539,0.82468,3358.8,3358.7,0.3603]
[1762494582745,0.82468,3358.8,3358.7,0.84289]
[1762494583842,0.545,3358.5,3358.0,3.4157]
[1762494584044,0.545,3358.5,3358.4,0.3603]
[1762494584348,0.3421,3358.7,3358.6,0.48259]
[1762494584548,0.20736821,3359.0,3358.0,3.4157]
[1762494584742,0.82471,3358.6,3358.5,0.48261]
[1762494584944,0.3421,3358.6,3358.5,0.48261]
[1762494585141,0.82471,3358.6,3358.5,0.48261]
[1762494586655,0.3421,3358.6,3358.5,0.48261]
[1762494586855,0.82471,3358.6,3358.5,0.48261]
[1762494589250,0.82471,3358.6,3358.0,3.4157]
[1762494589251,0.2029,3358.5,3358.0,3.4157]
[1762494589445,0.545,3358.5,3358.4,0.48263]
[1762494589649,1.02762,3358.5,3358.4,0.48263]
[1762494591355,0.48265,3358.3,3358.2,0.48266]
[1762494591555,0.82475,3358.3,3358.2,0.48266]
[1762494591755,0.545,3358.0,3357.9,0.48271]
[1762494592857,1.02769,3358.0,3357.9,0.48271]
[1762494593552,0.48278,3357.4,3357.3,0.00331752]
[1762494593759,4.03268,3357.4,3357.3,1.752e-05]
[1762494593960,0.3421,3356.4,3356.3,0.48293]
[1762494594262,0.3421,3356.2,3356.1,3.2078]
[1762494594462,3.2078,3356.8,3356.1,3.2078]
[1762494594854,0.48294,3356.3,3356.2,0.3603]
[1762494596559,0.00446821,3356.6,3356.3,0.48293]
[1762494596954,0.00446821,3356.6,3356.1,3.21027508]
[1762494597258,0.48735821,3356.6,3356.5,0.2079]
[1762494598861,0.00446821,3356.6,3356.5,0.2079]
[1762494599058,0.00446821,3356.6,3356.5,0.5682]
[1762494601659,0.3421,3356.5,3356.1,3.21027508]
[1762494601961,0.00446821,3356.6,3356.5,0.5682]
[1762494602361,3.2078,3357.2,3357.1,0.84312]
[1762494602658,3.2078,3357.6,3357.3,0.48278]
[1762494602857,0.82486,3357.5,3357.4,0.48278]
[1762494603162,3.69055,3357.6,3357.5,0.48276]
[1762494603364,4.03631252,3357.6,3357.5,0.48276]
[1762494603560,0.48641252,3357.6,3357.5,1.05096]
[1762494603760,0.00366252,3357.6,3357.5,1.05096]
[1762494606970,0.31216252,3357.6,3357.4,0.48277]
[1762494607167,0.79126,3357.5,3357.4,0.48277]
[1762494607462,0.48278,3357.4,3357.0,3.4157]
[1762494608664,0.79128,3357.4,3357.3,0.48279]
[1762494609662,0.79131,3357.2,3357.1,0.48281]
[1762494609859,0.3085,3357.2,3357.1,0.48281]
[1762494610055,0.3085,3357.2,3357.1,0.81951]
[1762494610460,0.79131,3357.2,3357.1,0.81951]
[1762494610855,0.79131,3357.2,3357.1,0.3367]
[1762494611068,0.79132,3357.1,3357.0,0.48282]
[1762494614263,0.79132,3357.1,3357.0,0.68172]
[1762494615962,0.3085,3357.1,3356.6,3.2078]
[1762494616264,0.3085,3356.8,3356.7,0.48288]
[1762494616570,0.48286,3356.8,3356.7,0.81958]
[1762494617665,0.79138,3356.7,3356.6,0.48289]
[1762494617860,0.79138,3356.7,3356.5,0.2079]
[1762494617861,3.2078,3357.4,3356.7,0.3367]
[1762494618072,0.48282,3357.1,3357.0,1.01843]
[1762494619861,3.2078,3357.4,3357.3,0.81949]
[1762494621071,0.00366252,3357.6,3357.5,1.01836]
[1762494625761,0.00446821,3357.9,3357.8,0.81942]
[1762494626874,0.00730226,3357.9,3357.8,0.81942]
[1762494627766,0.79851226,3357.9,3357.8,0.48272]
[1762494628177,0.00730226,3357.9,3357.8,0.81942]
[1762494628873,0.31580226,3357.9,3357.8,0.81942]
[1762494629070,0.3085,3357.6,3357.5,0.68166]
[1762494629274,0.3085,3357.6,3357.5,0.48276]
[1762494629875,0.3085,3357.6,3357.5,0.68166]
[1762494630274,0.79125,3357.6,3357.5,0.68166]
[1762494630471,0.3085,3357.6,3357.5,0.68166]
[1762494630667,0.48273,3357.8,3357.6,0.48273]
[1762494631063,0.48273,3357.8,3357.7,0.48273]
[1762494631269,0.79123,3357.8,3357.7,0.48273]
[1762494631674,0.3085,3357.8,3357.7,0.81943]
[1762494631867,0.00730226,3357.9,3357.8,0.81942]
[1762494634273,0.48262,3358.5,3358.4,0.81933]
[1762494634475,3.2078,3358.6,3358.5,1.01822]
[1762494635268,3.21005449,3358.6,3358.5,1.02176456]
[1762494636173,3.21005449,3358.6,3358.5,1.26028037]
[1762494638282,0.00225449,3358.6,3358.5,1.26028037]
[1762494638983,0.00446821,3358.9,3358.8,0.77388]
[1762494639978,0.00778011,3358.9,3358.8,0.77388]
[1762494640278,0.48245,3359.7,3359.6,0.77376]
[1762494640479,0.76215,3359.7,3359.6,0.77376]
[1762494640778,0.2797,3359.7,3359.6,0.77376]
[1762494640982,0.48243,3359.8,3359.7,0.48243]
[1762494641180,0.2797,3359.9,3359.8,0.48243]
[1762494641378,0.48686821,3360.1,3360.0,0.1692]
[1762494641574,0.76656821,3360.1,3360.0,0.6516]
[1762494641775,0.7687952,3360.1,3360.0,0.6516]
[1762494642381,0.1846,3359.1,3358.5,0.44096037]
[1762494642578,0.48252,3359.2,3358.5,0.68506456]
[1762494642579,3.2078,3359.2,3358.5,0.68506456]
[1762494642775,0.48259,3358.7,3358.5,0.49374456]
[1762494642981,0.48257,3358.9,3358.6,0.2913]
[1762494643190,0.66717,3358.9,3358.8,0.48258]
[1762494643584,3.2078,3359.2,3358.6,0.2913]
[1762494643780,0.48259,3358.7,3358.6,0.77389]
[1762494643982,0.48259,3358.7,3358.6,0.77391]
[1762494644380,0.66721,3358.6,3358.5,0.00354456]
[1762494647283,0.66721,3358.6,3358.5,0.17274456]
[1762494649981,0.66721,3358.6,3358.5,0.00354456]
[1762494653992,3.2078,3358.8,3358.6,0.4826]
[1762494654197,3.2078,3358.8,3358.7,0.77389]
[1762494655498,3.69038,3358.8,3358.7,0.77389]
[1762494655992,3.2078,3358.8,3358.7,0.77389]
[1762494657294,3.69038,3358.8,3358.7,0.77389]
[1762494658097,3.2078,3359.2,3359.1,0.77383]
[1762494659194,10.244,3360.2,3359.5,0.65167]
[1762494659195,3.2078,3359.6,3359.5,0.65167]
[1762494660489,3.69028,3359.6,3359.5,0.65167]
[1762494660682,3.69028,3359.6,3359.5,0.94297]
[1762494660883,3.69028,3359.6,3359.5,0.4605]
[1762494661890,3.69028,3359.6,3359.5,0.94298]
[1762494662698,3.2078,3359.6,3359.5,0.94298]
[1762494662891,3.69026,3359.6,3359.5,0.94298]
[1762494663391,0.48244,3359.8,3359.7,0.77373]
[1762494663692,0.66703,3359.8,3359.7,0.48243]
[1762494663897,3.87482,3360.0,3359.9,0.48242]
[1762494664094,0.4825,3359.3,3359.0,0.1692]
[1762494664388,3.69033,3359.1,3359.0,0.1692]
[1762494666096,0.48261,3358.6,3358.5,0.17274456]
[1762494669294,3.6904,3358.7,3358.5,0.17274456]
[1762494669890,0.48261,3358.6,3358.5,0.17274456]
[1762494670696,0.48261,3358.6,3358.5,0.65536456]
[1762494671098,0.48261,3358.6,3358.5,0.93876456]
[1762494671302,0.48261,3358.6,3358.5,0.45614456]
[1762494674196,0.48258,3358.8,3358.7,0.2834]
[1762494675401,0.48261,3358.6,3358.5,0.17274456]
[1762494675597,3.2078,3358.7,3358.0,0.1692]
[1762494675807,0.48275,3357.6,3357.5,0.65196]
[1762494676499,0.48275,3357.6,3357.5,0.1692]
[1762494676706,0.48641964,3357.6,3357.5,0.17200337]
[1762494677301,0.48641964,3357.6,3357.5,0.65476337]
[1762494678708,0.48641964,3357.6,3357.5,0.17200337]
[1762494679111,0.00366964,3357.6,3357.5,0.65476337]
[1762494679605,0.48641964,3357.6,3357.5,0.65476337]
[1762494680012,0.48641964,3357.6,3357.5,0.93816337]
[1762494680508,0.00366964,3357.6,3357.5,0.93816337]
[1762494681406,3.2078,3358.2,3358.1,0.76608]
[1762494681606,3.69046,3358.2,3358.1,0.76608]
[1762494681802,3.2078,3358.2,3358.1,0.76608]
[1762494682304,3.69046,3358.2,3358.1,0.76608]
[1762494682508,3.69364802,3358.2,3358.1,0.76608]
[1762494682708,3.21098802,3358.2,3358.1,0.76608]
[1762494683113,3.69364802,3358.2,3358.1,0.76608]
[1762494683408,3.21098802,3358.2,3358.1,0.76608]
[1762494684815,0.00318802,3358.2,3358.1,0.76608]
[1762494685814,0.00446821,3358.5,3358.4,0.76603]
[1762494686813,0.00733263,3358.5,3358.4,0.76603]
[1762494698626,3.2078,3358.9,3358.8,0.74028]
[1762494699416,0.4825,3359.4,3359.3,0.7402]
[1762494699417,3.2078,3359.4,3359.3,0.7402]
[1762494699616,3.69397003,3359.4,3359.3,0.7402]
[1762494699820,0.48617003,3359.4,3359.3,0.2577]
[1762494700027,3.21148003,3359.4,3359.3,0.7402]
[1762494701628,3.69397003,3359.4,3359.3,0.7402]
[1762494701827,3.21148003,3359.4,3359.3,0.7402]
[1762494702028,3.69397003,3359.4,3359.3,0.7402]
[1762494703521,0.48617003,3359.4,3359.3,0.7402]
[1762494703724,0.00368003,3359.4,3359.3,0.7402]
[1762494704828,0.48617003,3359.4,3359.3,0.7402]
[1762494705326,0.00368003,3359.4,3359.3,0.7402]
[1762494706625,0.48252,3359.3,3359.0,0.15516821]
[1762494706923,3.2078,3359.2,3359.0,0.15516821]
[1762494707427,3.69033,3359.2,3359.1,0.48253]
[1762494708620,3.2078,3359.2,3359.1,0.74023]
[1762494709226,0.00368003,3359.4,3359.3,0.7402]
[1762494710930,0.00296221,3359.7,3359.6,0.74016]
[1762494712026,0.00636774,3359.7,3359.6,0.74016]
[1762494714136,3.69018,3360.2,3360.1,0.74009]
[1762494715234,3.21166319,3360.2,3360.1,0.74225269]
[1762494716032,3.69404319,3360.2,3360.1,0.74225269]
[1762494717337,3.21166319,3360.2,3360.1,0.74225269]
[1762494718836,0.00386319,3360.2,3360.1,3.95005269]
[1762494719034,3.2078,3361.0,3360.9,0.73997]
[1762494719239,3.2078,3361.4,3361.3,0.73992]
[1762494719536,3.2078,3361.8,3361.7,0.73985]
[1762494719735,3.2078,3361.8,3361.7,0.2577]
[1762494720133,3.21128369,3361.8,3361.7,0.2577]
[1762494720331,1.59712691,3363.4,3361.5,0.1507]
[1762494720332,4.27255127,3363.3,3363.0,0.1507]
[1762494720532,12.24463965,3365.2,3363.0,0.1507]
[1762494720533,3.2078,3363.7,3363.0,0.1507]
[1762494720732,0.48194,3363.3,3363.0,0.1507]
[1762494721035,3.68975,3363.2,3363.0,0.1507]
[1762494721434,3.69283976,3363.2,3363.0,0.15328041]
[1762494725536,3.21088976,3363.2,3362.5,0.1507]
[1762494725733,3.2078,3362.8,3362.0,3.3585]
[1762494725929,3.2078,3362.8,3362.0,3.84061]
[1762494726137,0.48209,3362.2,3362.0,3.3585]
[1762494726538,0.48209,3362.2,3362.0,3.36172969]
[1762494728641,0.48209,3362.2,3362.0,3.84383969]
[1762494728944,0.48209,3362.2,3362.1,0.2705]
[1762494730142,2.69432883,3362.8,3362.1,0.2705]
[1762494730545,0.48209,3362.2,3362.0,3.36172969]
[1762494732140,3.2078,3362.8,3362.0,3.84384969]
[1762494732337,3.2078,3362.8,3362.5,0.15]
[1762494732538,0.48202,3362.7,3362.5,0.15]
[1762494732743,0.00308976,3363.2,3363.1,0.2705]
[1762494733042,4.80492691,3364.2,3363.0,0.15]
[1762494733043,2.21088976,3364.2,3363.0,0.15]
[1762494733247,0.48193,3363.4,3363.3,3.2078]
[1762494733940,0.48204,3362.6,3362.5,3.3578]
[1762494734333,0.48201,3362.8,3362.7,0.2705]
[1762494734742,0.0022375,3363.4,3363.0,0.15]
[1762494734940,0.4841575,3363.4,3363.3,0.2705]
[1762494735443,0.0022375,3363.4,3363.3,0.2705]
[1762494738256,0.48179,3364.4,3364.1,0.2705]
[1762494738445,0.4818,3364.3,3364.1,0.2705]
[1762494738646,0.48175,3364.6,3364.5,0.4205]
[1762494738850,0.4817,3365.0,3364.6,0.2705]
[1762494739146,0.48174,3364.7,3364.6,0.27413089]
[1762494741339,0.48174,3364.7,3364.6,0.00363089]
[1762494741744,0.48174,3364.7,3364.6,0.27413089]
[1762494748158,0.00277827,3365.0,3364.9,0.75221]
[1762494748651,0.00277827,3365.0,3364.9,0.2705]
[1762494748854,0.48446827,3365.0,3364.9,0.2705]
[1762494750547,0.00277827,3365.0,3364.9,3.4783]
[1762494750750,0.77368359,3365.8,3365.7,0.2705]
[1762494751451,1.25526359,3365.8,3365.7,0.2705]
[1762494751647,1.25808696,3365.8,3365.7,0.2705]
[1762494751963,0.48440337,3365.8,3365.7,0.2705]
[1762494752851,0.00282337,3365.8,3365.7,3.4783]
[1762494754849,0.00282337,3365.8,3365.7,0.2705]
[1762494755044,0.48159,3365.7,3365.5,0.15]
[1762494755949,0.48159,3365.7,3365.0,0.15]
[1762494755950,0.48168,3365.1,3365.0,0.15]
[1762494756755,3.68948,3365.1,3365.0,0.15]
[1762494757256,4.46182955,3365.1,3365.0,0.15]
[1762494757652,0.77234955,3365.1,3365.0,0.4248]
[1762494757857,3.98014955,3365.1,3365.0,0.15]
[1762494758046,3.98014955,3365.1,3364.5,3.3578]
[1762494758254,3.68954,3364.7,3364.5,0.15]